bitfinex-derivatives/quotes_ETHF0:USTF0_20250323
["timestamp","ask_amount","ask_price","bid_price","bid_amount"]
[1742768402846,0.7082,1997.9,1997.8,2.34658]
[1742768403157,1.70933,1997.9,1997.8,1.3454]
[1742768403350,0.7082,1997.9,1997.8,2.34658]
[1742768403550,1.70933,1997.9,1997.8,1.3454]
[1742768403856,3.01133,1997.9,1997.8,1.3454]
[1742768404362,1.00118,1997.8,1997.7,3.35451127]
[1742768404553,2.30318,1997.8,1997.7,4.73431127]
[1742768405054,2.95158,1997.8,1997.7,4.73431127]
[1742768405254,3.2078,1997.9,1997.7,4.73431127]
[1742768405550,4.20894,1997.9,1997.8,1.3798]
[1742768406658,1.00118,1997.8,1997.7,3.35451127]
[1742768406858,1.00118,1997.8,1997.7,4.74661127]
[1742768407054,1.00118,1997.8,1997.7,0.00751127]
[1742768410461,1.00138,1997.4,1997.3,6.5408]
[1742768410762,2.50309,1997.7,1997.3,6.5408]
[1742768410763,2.5032,1997.6,1997.3,3.332]
[1742768411059,2.5032,1997.6,1997.2,1.373]
[1742768411060,1.00143,1997.3,1997.2,4.705]
[1742768411256,1.00143,1997.3,1996.9,54.349]
[1742768411257,1.00153,1997.1,1996.9,49.39258]
[1742768411456,1.00151,1997.2,1997.1,0.00751127]
[1742768411853,1.00151,1997.2,1997.1,1.31631127]
[1742768412053,1.00151,1997.2,1997.1,2.31784127]
[1742768412254,1.00146,1997.3,1997.1,2.31784127]
[1742768412561,1.00146,1997.3,1997.2,1.3088]
[1742768413262,3.2078,1997.4,1997.1,0.00751127]
[1742768413263,1.00148,1997.2,1997.1,0.00751127]
[1742768413456,1.00148,1997.2,1997.1,1.31631127]
[1742768415354,1.00148,1997.2,1997.1,2.04636746]
[1742768416163,1.00148,1997.2,1997.1,2.04637289]
[1742768416363,1.00148,1997.2,1997.1,1.31631127]
[1742768416560,1.00148,1997.2,1997.1,2.0463774]
[1742768416864,1.00148,1997.2,1997.1,2.04637816]
[1742768417866,1.00148,1997.2,1997.1,1.31631127]
[1742768419162,2.50385,1997.1,1996.5,3.2078]
[1742768419368,1.00173,1996.7,1996.6,2.0224877]
[1742768419566,1.00173,1996.7,1996.6,1.2921]
[1742768420166,1.68763,1996.7,1996.6,1.2921]
[1742768420559,4.89543,1996.7,1996.6,1.2921]
[1742768420759,1.00178,1996.6,1996.5,1.35151127]
[1742768421057,1.00178,1996.6,1996.5,2.77391127]
[1742768421464,1.00178,1996.6,1996.5,2.11811127]
[1742768421661,1.00178,1996.6,1996.5,5.47211127]
[1742768423170,1.00178,1996.6,1996.5,0.00751127]
[1742768423758,2.35838,1996.6,1996.5,0.00751127]
[1742768423964,1.3566,1996.6,1996.5,0.00751127]
[1742768424166,2.35838,1996.6,1996.5,3.37451127]
[1742768424364,2.35838,1996.6,1996.5,4.07191127]
[1742768424561,2.35838,1996.6,1996.5,5.41211127]
[1742768425171,2.35838,1996.6,1996.5,3.37451127]
[1742768426574,1.00178,1996.6,1996.5,0.00751127]
[1742768426767,1.00178,1996.6,1996.5,4.37134127]
[1742768426768,1.3849,1996.6,1996.5,4.37134127]
[1742768427069,4.7949,1996.7,1996.5,5.74374127]
[1742768427369,6.1798,1996.7,1996.6,2.0355]
[1742768427563,7.18153,1996.7,1996.6,2.7331]
[1742768427766,2.38663,1996.7,1996.6,2.7331]
[1742768434874,6.23923,1996.7,1996.6,2.7331]
[1742768436675,1.00178,1996.6,1996.5,0.00751127]
[1742768436877,2.33648,1996.6,1996.5,0.00751127]
[1742768437076,2.33648,1996.6,1996.5,1.38231127]
[1742768440871,3.03718,1996.6,1996.5,1.38231127]
[1742768441778,3.03718,1996.6,1996.5,0.00751127]
[1742768442281,3.03718,1996.6,1996.5,1.41811127]
[1742768445277,3.03718,1996.6,1996.5,0.00751127]
[1742768446284,3.03718,1996.6,1996.5,1.00934127]
[1742768446485,3.03718,1996.6,1996.5,2.33384127]
[1742768447078,3.03718,1996.6,1996.5,1.33201127]
[1742768448577,3.03718,1996.6,1996.5,2.06116669]
[1742768450585,3.03718,1996.6,1996.5,1.33201127]
[1742768450888,2.33648,1996.6,1996.5,2.06152005]
[1742768451086,2.33648,1996.6,1996.5,0.73702005]
[1742768451087,7.13138,1996.6,1996.5,0.73702005]
[1742768451292,7.13138,1996.6,1996.5,0.00751127]
[1742768451694,1.00211,1996.0,1995.9,4.34011]
[1742768452000,1.00211,1996.0,1995.9,5.88705241]
[1742768452179,1.00211,1996.0,1995.9,2.54905241]
[1742768452378,1.00211,1996.0,1995.9,1.38145284]
[1742768452688,1.00211,1996.0,1995.6,0.7132]
[1742768452689,1.00223,1995.7,1995.6,0.7132]
[1742768452878,1.00228,1995.6,1995.5,4.7418]
[1742768453079,1.00228,1995.6,1995.5,4.3023036]
[1742768453293,1.00228,1995.6,1995.5,2.13833524]
[1742768453488,1.00228,1995.6,1995.5,2.78981576]
[1742768454097,1.00228,1995.6,1995.5,2.13833524]
[1742768454286,1.00228,1995.6,1995.5,2.13180676]
[1742768454689,1.00228,1995.6,1995.5,1.41231127]
[1742768455099,4.21008,1995.6,1995.5,0.00751127]
[1742768455297,5.54838,1995.6,1995.5,0.00751127]
[1742768456997,10.34328,1995.6,1995.5,0.00751127]
[1742768460192,1.00243,1995.3,1995.2,1.3987]
[1742768460490,1.00253,1995.1,1994.9,1.3788]
[1742768460690,1.00258,1995.0,1994.9,1.3788]
[1742768460897,1.00268,1994.8,1994.7,0.7044]
[1742768461098,3.2078,1994.9,1994.5,0.6744]
[1742768461288,3.2078,1994.9,1994.6,0.00751127]
[1742768461489,1.00273,1994.7,1994.6,0.00751127]
[1742768462296,5.51263,1994.7,1994.6,0.00751127]
[1742768463597,2.30483,1994.7,1994.6,0.00751127]
[1742768465698,6.18463,1994.7,1994.6,0.00751127]
[1742768468787,10.97953,1994.7,1994.6,0.00751127]
[1742768469200,1.00288,1994.4,1994.3,1.4021]
[1742768469396,4.21068,1994.4,1994.3,1.4021]
[1742768469896,5.61418,1994.4,1994.3,1.4021]
[1742768471896,5.61418,1994.4,1994.2,4.03391127]
[1742768471897,1.00293,1994.3,1994.2,0.00751127]
[1742768472201,1.00318,1993.9,1993.7,4.97249]
[1742768472403,1.00316,1993.9,1993.7,4.97249]
[1742768472787,1.00318,1993.9,1993.7,4.97249]
[1742768472989,1.00318,1993.8,1993.7,4.97249]
[1742768473506,1.3282,1994.0,1993.7,4.97249]
[1742768473803,1.00318,1993.8,1993.7,4.97249]
[1742768474188,1.00318,1993.8,1993.7,3.9693]
[1742768474392,1.00318,1993.8,1993.7,4.97252]
[1742768474602,1.3282,1994.0,1993.7,4.97254]
[1742768474603,1.00317,1993.9,1993.7,4.97254]
[1742768474902,1.00318,1993.8,1993.7,3.9693]
[1742768475102,1.00317,1993.9,1993.7,4.97254]
[1742768475297,1.00318,1993.8,1993.7,4.97254]
[1742768475504,1.00318,1993.8,1993.7,3.9693]
[1742768476000,1.00318,1993.8,1993.7,0.6523]
[1742768476791,2.38278,1993.8,1993.7,0.6523]
[1742768476997,2.38278,1993.8,1993.7,1.65554]
[1742768477197,2.38278,1993.8,1993.7,0.6523]
[1742768479411,2.38278,1993.8,1993.7,3.9673]
[1742768479604,2.50812,1993.7,1993.2,3.2078]
[1742768479812,1.00334,1993.5,1993.4,1.3693]
[1742768480014,1.0035,1993.2,1993.0,3.2078]
[1742768480312,1.0035,1993.2,1993.1,4.32152]
[1742768480704,1.01098127,1993.3,1993.1,4.32152]
[1742768481013,1.01098127,1993.3,1993.2,1.00349]
[1742768481201,1.01098127,1993.3,1993.1,4.3215]
[1742768481405,0.00751127,1993.3,1993.0,5.58068]
[1742768481605,1.00353,1993.2,1993.1,3.319]
[1742768482104,2.32343,1993.2,1993.1,3.319]
[1742768483406,2.32343,1993.2,1993.1,4.32254]
[1742768483709,2.32343,1993.2,1993.1,3.319]
[1742768484016,1.3199,1993.2,1993.1,5.68104]
[1742768484211,2.32339,1993.2,1993.1,4.6775]
[1742768485212,2.32339,1993.2,1993.1,5.68104]
[1742768485415,1.3199,1993.2,1993.1,5.68104]
[1742768486212,0.00751127,1993.3,1993.2,1.00349]
[1742768486412,0.00751127,1993.3,1993.2,2.34399]
[1742768486614,1.01095127,1993.3,1993.2,2.34399]
[1742768487409,0.00751127,1993.3,1993.2,2.34399]
[1742768488020,1.01095127,1993.3,1993.2,2.34399]
[1742768488208,0.00751127,1993.3,1993.2,2.34399]
[1742768489419,1.01095127,1993.3,1993.2,3.06260351]
[1742768489619,2.38945127,1993.3,1993.2,3.06260351]
[1742768490019,1.38601127,1993.3,1993.2,3.06260351]
[1742768490623,2.38945127,1993.3,1993.2,3.06260351]
[1742768490915,1.38601127,1993.3,1993.2,2.05911351]
[1742768491119,1.38601127,1993.3,1993.2,3.06261368]
[1742768491618,1.38601127,1993.3,1993.2,3.06256082]
[1742768492206,2.38945127,1993.3,1993.2,3.06267945]
[1742768492814,2.38945127,1993.3,1993.2,2.05918945]
[1742768493717,2.38945127,1993.3,1993.2,2.05951124]
[1742768495624,2.38945127,1993.3,1993.2,2.0600457]
[1742768497615,2.38945127,1993.3,1993.2,2.06056544]
[1742768499617,1.38601127,1993.3,1993.2,3.06455286]
[1742768500119,1.38601127,1993.3,1993.2,2.06103914]
[1742768500120,2.38945127,1993.3,1993.2,2.06103914]
[1742768500424,2.38945127,1993.3,1993.2,3.21429634]
[1742768501623,2.38945127,1993.3,1993.2,3.86789147]
[1742768505423,2.38945127,1993.3,1993.2,4.87138147]
[1742768505629,2.38945127,1993.3,1993.2,4.87421604]
[1742768507025,2.38945127,1993.3,1993.2,2.53022604]
[1742768507526,1.38601127,1993.3,1993.2,2.53022604]
[1742768507716,2.38945127,1993.3,1993.2,2.53164502]
[1742768508331,5.59725127,1993.3,1993.2,1.37515769]
[1742768508623,1.00354,1993.1,1993.0,1.00358]
[1742768508824,1.00354,1993.1,1993.0,2.85687615]
[1742768509223,1.4214,1993.2,1993.1,1.00354]
[1742768509522,1.4214,1993.2,1993.1,3.02694621]
[1742768509726,1.4214,1993.2,1993.1,3.01566944]
[1742768509928,1.4214,1993.2,1993.1,3.67044803]
[1742768510332,2.42489,1993.2,1993.1,3.67044803]
[1742768511637,2.42489,1993.2,1993.1,3.67007152]
[1742768512835,2.42489,1993.2,1993.1,0.65477859]
[1742768513223,1.00354,1993.1,1993.0,1.4115]
[1742768513430,2.98424,1993.1,1993.0,2.76711267]
[1742768513736,2.98424,1993.1,1993.0,2.76702309]
[1742768514628,2.98424,1993.1,1993.0,2.06593177]
[1742768515735,2.98424,1993.1,1993.0,1.4115]
[1742768516639,3.64154,1993.1,1993.0,1.4115]
[1742768517734,1.00364,1992.9,1992.8,3.9305]
[1742768518033,1.00364,1992.9,1992.8,0.70086034]
[1742768518223,1.00364,1992.9,1992.8,0.65423479]
[1742768518428,9.67849,1992.9,1992.2,3.2078]
[1742768518629,1.00389,1992.4,1992.3,3.08459685]
[1742768519330,2.0852,1992.6,1992.3,3.08459685]
[1742768519533,2.0351,1992.5,1992.2,3.2078]
[1742768519833,1.3863,1992.4,1992.1,5.67193]
[1742768520037,1.00399,1992.2,1992.1,5.67193]
[1742768520336,1.3863,1992.4,1992.1,3.98861486]
[1742768520337,1.00397,1992.3,1992.1,3.98861486]
[1742768520533,1.00397,1992.3,1992.1,4.292]
[1742768520534,1.3863,1992.2,1992.1,4.292]
[1742768520728,1.3863,1992.2,1992.1,4.99261112]
[1742768521224,1.3863,1992.2,1992.1,1.70461112]
[1742768521427,1.3863,1992.2,1992.1,4.99160137]
[1742768521629,2.39029,1992.2,1992.1,4.99160137]
[1742768521942,2.39029,1992.2,1992.1,4.291]
[1742768522338,2.39029,1992.2,1992.1,4.29104]
[1742768523437,1.3863,1992.2,1992.1,4.29104]
[1742768523638,1.3863,1992.2,1992.1,7.49884]
[1742768524338,1.70274,1992.6,1992.1,9.00484]
[1742768524544,2.36734,1992.5,1992.4,1.00389]
[1742768524735,4.7949,1992.8,1992.7,1.00374]
[1742768525044,5.2475,1992.9,1992.7,1.00372]
[1742768525236,1.00369,1992.8,1992.6,3.286]
[1742768525437,2.36719,1992.8,1992.6,4.28975]
[1742768525639,1.3635,1992.8,1992.6,4.28975]
[1742768525940,2.36719,1992.8,1992.6,4.28975]
[1742768526340,1.00374,1992.7,1992.6,3.286]
[1742768526535,2.36724,1992.7,1992.6,3.286]
[1742768527140,1.00386,1992.5,1992.3,3.2078]
[1742768527341,3.71113,1992.6,1992.4,4.28686]
[1742768527640,1.3279,1992.5,1992.4,4.28686]
[1742768527837,2.50824,1993.6,1993.2,1.00349]
[1742768528038,2.50824,1993.6,1993.2,4.31549]
[1742768528039,1.00343,1993.4,1993.2,4.31549]
[1742768528432,1.01095127,1993.3,1993.2,4.31549]
[1742768528740,1.01095127,1993.3,1993.2,3.312]
[1742768529039,0.00751127,1993.3,1993.2,3.312]
[1742768529243,1.01095127,1993.3,1993.2,3.312]
[1742768529542,1.0035,1993.2,1993.0,1.71377]
[1742768529744,2.3314,1993.2,1993.1,4.31454]
[1742768530129,1.3279,1993.2,1993.1,4.31454]
[1742768530535,1.00354,1993.1,1993.0,4.0192]
[1742768533036,1.00354,1993.1,1993.0,5.02279]
[1742768533344,1.00354,1993.1,1993.0,4.0192]
[1742768534442,1.00369,1992.8,1992.7,3.2078]
[1742768534637,1.00369,1992.8,1992.7,1.3488]
[1742768534836,1.00379,1992.6,1992.5,0.6982]
[1742768535040,1.00394,1992.3,1992.2,3.324]
[1742768535341,1.00399,1992.2,1992.1,0.6982]
[1742768535549,1.00399,1992.2,1992.1,4.0232]
[1742768536143,1.00399,1992.2,1992.1,5.4181]
[1742768536345,1.00399,1992.2,1992.1,2.0931]
[1742768536550,1.00399,1992.2,1992.1,5.4171]
[1742768536941,2.30029,1992.2,1992.1,5.4171]
[1742768537847,1.00407,1992.1,1991.9,4.32611]
[1742768538044,1.00407,1992.1,1992.0,1.3949]
[1742768538354,1.00409,1992.0,1991.9,3.322]
[1742768538651,1.00409,1992.0,1991.9,4.7169]
[1742768541150,1.00406,1992.1,1992.0,1.00409]
[1742768541347,0.00751127,1992.2,1992.1,1.00404]
[1742768541552,0.00751127,1992.2,1992.1,4.32204]
[1742768541853,0.00751127,1992.2,1992.1,4.0093]
[1742768542047,0.00751127,1992.2,1992.1,6.43554]
[1742768548058,1.0036,1993.0,1992.8,1.00369]
[1742768548257,8.0027,1993.2,1992.9,3.04904]
[1742768548447,1.00358,1993.1,1993.0,1.403]
[1742768550550,1.00358,1993.1,1993.0,5.71959]
[1742768550758,1.00358,1993.1,1993.0,4.716]
[1742768551658,5.71541,1994.1,1993.0,11.12061511]
[1742768551852,1.00339,1993.4,1993.3,1.00342]
[1742768552052,3.2078,1993.6,1993.3,4.615]
[1742768552262,1.00339,1993.4,1993.3,4.615]
[1742768552465,1.00339,1993.4,1993.3,5.61844]
[1742768553964,2.33599,1993.4,1993.3,5.61844]
[1742768555256,1.3326,1993.4,1993.3,5.61844]
[1742768555455,2.33599,1993.4,1993.3,5.61844]
[1742768555762,1.00352,1993.2,1993.0,4.31955]
[1742768555965,1.00352,1993.2,1993.1,1.3834]
[1742768556964,1.00352,1993.2,1993.1,2.38694]
[1742768557363,1.00352,1993.2,1993.1,1.3834]
[1742768557756,1.00352,1993.2,1993.1,2.38694]
[1742768558160,1.00354,1993.1,1993.0,4.31958]
[1742768558466,1.00354,1993.1,1993.0,5.73438]
[1742768558966,3.8278,1993.3,1992.9,0.00753031]
[1742768558967,1.00359,1993.0,1992.9,0.00753031]
[1742768561763,1.00359,1993.0,1992.9,1.33913031]
[1742768563672,1.00359,1993.0,1992.9,0.00753031]
[1742768563963,1.00359,1993.0,1992.3,2.50974]
[1742768563964,1.00379,1992.6,1992.5,1.373]
[1742768564369,1.00376,1992.7,1992.6,1.00376]
[1742768564567,3.84351,1992.9,1992.5,4.5808]
[1742768564568,1.3344,1992.9,1992.5,4.5808]
[1742768565072,1.00374,1992.7,1992.6,2.37675]
[1742768565465,1.00374,1992.7,1992.6,1.373]
[1742768565672,1.00379,1992.6,1992.5,4.21914031]
[1742768565870,1.00379,1992.6,1992.5,5.59214031]
[1742768566073,1.00377,1992.7,1992.5,5.59214031]
[1742768566375,1.00377,1992.7,1992.6,1.373]
[1742768566970,1.00377,1992.7,1992.6,2.37679]
[1742768567474,1.00377,1992.7,1992.6,1.373]
[1742768572671,1.00379,1992.6,1992.5,0.00753031]
[1742768573180,1.00379,1992.6,1992.5,1.38283031]
[1742768573581,1.00379,1992.6,1992.5,2.38667031]
[1742768573879,1.00379,1992.6,1992.5,1.38283031]
[1742768574470,1.00379,1992.6,1992.5,2.38667031]
[1742768575176,1.00379,1992.6,1992.5,0.00753031]
[1742768575582,2.39279,1992.6,1992.5,0.00753031]
[1742768578676,5.60059,1992.6,1992.5,0.00753031]
[1742768580393,10.39549,1992.6,1992.5,0.00753031]
[1742768582788,1.00394,1992.3,1992.2,1.3103]
[1742768583003,1.00399,1992.2,1992.1,3.293]
[1742768583188,2.34059,1992.2,1992.1,4.6033]
[1742768583785,2.34059,1992.2,1992.1,1.3103]
[1742768584201,2.34059,1992.2,1992.0,0.6791]
[1742768584202,1.00404,1992.1,1992.0,0.6791]
[1742768584396,2.34064,1992.1,1992.0,1.9894]
[1742768584595,3.01424,1992.1,1992.0,1.3103]
[1742768584794,1.00414,1991.9,1991.8,1.68959]
[1742768584995,1.00414,1991.9,1991.8,4.97859]
[1742768585203,1.00414,1991.9,1991.8,3.9744]
[1742768586102,1.00414,1991.9,1991.8,5.3973]
[1742768587105,1.00414,1991.9,1991.8,2.1083]
[1742768588005,1.00419,1991.8,1991.7,3.2078]
[1742768588191,2.34069,1991.8,1991.7,3.2078]
[1742768589199,2.34069,1991.8,1991.7,4.6261]
[1742768589396,2.34069,1991.8,1991.7,1.4183]
[1742768591096,1.3365,1991.8,1991.5,4.21211]
[1742768591296,5.80337,1991.9,1991.5,4.5988]
[1742768591297,1.00429,1991.6,1991.5,4.5988]
[1742768591499,3.61698,1991.7,1991.5,5.6031]
[1742768591698,2.31768,1991.7,1991.6,1.391]
[1742768595202,1.00429,1991.6,1991.5,3.2078]
[1742768595601,1.00429,1991.6,1991.5,4.5116]
[1742768600518,1.00423,1991.8,1991.7,1.00422]
[1742768600815,9.00683,1992.0,1991.9,1.00414]
[1742768601009,4.21193,1992.0,1991.9,1.00414]
[1742768601209,1.00414,1991.9,1991.8,3.02326]
[1742768601406,1.00414,1991.9,1991.8,1.66346]
[1742768601917,1.00414,1991.9,1991.8,1.66349]
[1742768602910,1.00414,1991.9,1991.8,0.6593]
[1742768603108,1.00414,1991.9,1991.8,1.66349]
[1742768603310,1.00414,1991.9,1991.8,0.6593]
[1742768604814,1.00429,1991.6,1991.5,3.2078]
[1742768605008,1.00429,1991.6,1991.5,4.87394]
[1742768605211,1.00429,1991.6,1991.5,3.8696]
[1742768606009,1.00429,1991.6,1991.5,4.87394]
[1742768607108,1.00429,1991.6,1991.5,3.8696]
[1742768608008,1.00429,1991.6,1991.5,4.87394]
[1742768608410,5.489,1991.8,1991.5,7.1586]
[1742768608610,1.00427,1991.7,1991.6,1.00427]
[1742768610015,1.00428,1991.7,1991.6,1.00428]
[1742768610816,1.00428,1991.7,1991.3,4.21224]
[1742768610817,1.00444,1991.4,1991.3,4.21224]
[1742768611022,2.0653,1991.6,1991.3,4.21221]
[1742768611314,1.00439,1991.4,1991.3,4.21221]
[1742768611613,1.00439,1991.4,1991.3,7.49821]
[1742768612209,1.00439,1991.4,1991.3,8.87010629]
[1742768612910,1.00436,1991.5,1991.4,1.00437]
[1742768613711,4.7949,1991.7,1991.6,1.00429]
[1742768613913,5.42347861,1992.9,1991.6,1.00429]
[1742768613914,6.96311,1992.2,1991.6,3.99000096]
[1742768614119,1.0041,1992.0,1991.9,1.00411]
[1742768614309,1.0041,1992.0,1991.9,5.70491]
[1742768614514,1.4093,1992.1,1992.0,1.00409]
[1742768614515,2.41337,1992.1,1992.0,1.00409]
[1742768614715,2.41337,1992.1,1992.0,2.41489]
[1742768615923,2.41337,1992.1,1992.0,1.4108]
[1742768616526,2.41337,1992.1,1992.0,2.41489]
[1742768618528,2.41334,1992.1,1992.0,2.41489]
[1742768620624,2.41334,1992.1,1992.0,1.4108]
[1742768622429,2.41334,1992.1,1992.0,2.41489]
[1742768623230,2.41334,1992.1,1992.0,1.4108]
[1742768624824,2.41334,1992.1,1992.0,2.41489]
[1742768625027,2.41334,1992.1,1992.0,5.62269]
[1742768625734,1.00413,1992.0,1991.8,3.2078]
[1742768625915,3.02393,1992.0,1991.9,4.28014]
[1742768626119,3.02393,1992.0,1991.9,5.62584]
[1742768627031,2.0198,1992.0,1991.9,5.62584]
[1742768628333,3.02389,1992.0,1991.9,5.62584]
[1742768628527,3.02389,1992.0,1991.9,2.34984]
[1742768628723,1.00414,1991.9,1991.8,3.2078]
[1742768628924,2.34734,1991.9,1991.8,5.27326648]
[1742768629332,2.34734,1991.9,1991.8,5.91875241]
[1742768630928,2.34734,1991.9,1991.8,2.71095241]
[1742768631131,2.34734,1991.9,1991.8,2.01042172]
[1742768631332,2.34734,1991.9,1991.8,1.365]
[1742768633527,2.34734,1991.9,1991.8,2.06560467]
[1742768634438,2.34734,1991.9,1991.8,3.71527558]
[1742768635236,2.34734,1991.9,1991.8,3.01467091]
[1742768635433,2.34734,1991.9,1991.8,3.71527879]
[1742768635834,2.34734,1991.9,1991.8,3.71528405]
[1742768637239,1.3432,1991.9,1991.8,3.71528405]
[1742768637434,1.3432,1991.9,1991.8,3.71534312]
[1742768637934,1.3432,1991.9,1991.8,6.92314312]
[1742768639424,1.3432,1991.9,1991.8,6.27768875]
[1742768639931,1.3432,1991.9,1991.8,6.92325246]
[1742768640536,0.6678,1992.1,1992.0,1.00409]
[1742768640737,4.80243031,1992.3,1992.2,1.00399]
[1742768641131,6.20013031,1992.3,1992.2,4.26899]
[1742768641333,6.20013031,1992.3,1992.2,5.62699]
[1742768641734,1.40523031,1992.3,1992.2,5.62699]
[1742768642433,1.00404,1992.1,1992.0,3.2078]
[1742768642632,1.00404,1992.1,1991.7,5.958]
[1742768642633,1.00409,1992.0,1991.9,3.271]
[1742768642836,1.00414,1991.9,1991.8,3.2078]
[1742768643128,1.69454,1991.9,1991.8,4.555173]
[1742768643438,2.99194,1991.9,1991.8,4.55565977]
[1742768644329,2.99194,1991.9,1991.8,5.86035977]
[1742768644936,2.99194,1991.9,1991.8,5.85684923]
[1742768645144,2.99194,1991.9,1991.8,6.86103923]
[1742768645535,2.99194,1991.9,1991.8,5.15860344]
[1742768645844,2.99194,1991.9,1991.8,3.85390344]
[1742768646042,2.99194,1991.9,1991.8,5.18710344]
[1742768646342,2.99194,1991.9,1991.8,4.541]
[1742768647238,2.99194,1991.9,1991.8,5.54519]
[1742768647431,2.99194,1991.9,1991.8,4.541]
[1742768649234,2.99194,1991.9,1991.8,3.2078]
[1742768651948,1.00419,1991.8,1991.7,3.272]
[1742768652145,1.00419,1991.8,1991.5,2.1335]
[1742768652146,1.00429,1991.6,1991.5,2.1335]
[1742768652348,1.00429,1991.6,1991.5,1.4197]
[1742768652543,1.00434,1991.5,1991.4,4.27637]
[1742768652747,3.04164,1991.5,1991.4,7.03985776]
[1742768653348,3.04164,1991.5,1991.4,3.76785776]
[1742768653848,3.04164,1991.5,1991.4,3.07014549]
[1742768654047,3.04164,1991.5,1991.4,0.64607549]
[1742768654645,1.00444,1991.3,1991.2,4.6907]
[1742768655150,1.00444,1991.3,1991.2,6.39243139]
[1742768655342,1.00444,1991.3,1991.2,6.03356759]
[1742768655544,1.00444,1991.3,1991.2,5.3363262]
[1742768655744,1.00444,1991.3,1991.2,4.6907]
[1742768656253,1.00444,1991.3,1991.2,5.69519]
[1742768656455,1.00444,1991.3,1991.2,4.6907]
[1742768657852,1.00444,1991.3,1990.9,1.3805]
[1742768657853,1.0046,1991.0,1990.9,1.3805]
[1742768658043,1.0046,1991.0,1990.9,2.07718482]
[1742768658240,1.0046,1991.0,1990.9,2.72230441]
[1742768658445,1.0046,1991.0,1990.9,5.99330441]
[1742768658853,2.32871031,1991.1,1990.9,5.99302537]
[1742768659147,1.32413031,1991.1,1991.0,5.5103]
[1742768659952,2.32868031,1991.1,1991.0,4.5057]
[1742768660150,1.32413031,1991.1,1991.0,5.5103]
[1742768660957,0.00753031,1991.1,1991.0,5.5103]
[1742768665555,0.00753031,1991.1,1991.0,8.0103]
[1742768665759,4.7949,1992.0,1991.3,2.51112]
[1742768665949,2.34477,1991.9,1991.8,1.00419]
[1742768666152,1.3406,1991.9,1991.8,7.48399]
[1742768667164,2.34474,1991.9,1991.8,7.48399]
[1742768668264,1.3406,1991.9,1991.8,7.48399]
[1742768668758,0.00753031,1992.0,1991.9,1.00414]
[1742768668965,0.00753031,1992.0,1991.9,2.36884]
[1742768672464,1.01162031,1992.0,1991.9,2.36884]
[1742768672660,1.01162031,1992.0,1991.9,1.3647]
[1742768672858,1.00414,1991.9,1991.8,3.2078]
[1742768673054,1.00419,1991.8,1991.7,3.27853031]
[1742768673458,2.33099,1991.8,1991.7,3.27853031]
[1742768675277,2.33099,1991.8,1991.7,0.00753031]
[1742768679670,5.53879,1991.8,1991.7,0.00753031]
[1742768680171,7.04521,1991.8,1991.4,3.266]
[1742768680469,1.00434,1991.5,1991.4,3.266]
[1742768680864,2.51088,1991.5,1991.1,3.2078]
[1742768681087,1.00444,1991.3,1991.2,3.265]
[1742768681469,3.05714,1991.3,1991.2,3.265]
[1742768682074,3.05714,1991.3,1991.2,4.26949]
[1742768682476,2.0527,1991.3,1991.2,5.57649]
[1742768682672,3.05714,1991.3,1991.2,4.572]
[1742768682872,3.05714,1991.3,1991.2,5.57649]
[1742768683279,3.05714,1991.3,1991.2,4.572]
[1742768684178,3.05714,1991.3,1991.2,5.57649]
[1742768684378,3.05714,1991.3,1991.2,4.572]
[1742768686184,3.05714,1991.3,1991.2,5.57649]
[1742768686783,2.0527,1991.3,1991.2,5.57649]
[1742768687083,3.05714,1991.3,1991.2,5.57649]
[1742768690881,4.7949,1991.6,1991.5,1.00434]
[1742768691088,7.13209,1991.6,1991.5,4.26334]
[1742768691585,2.33719,1991.6,1991.5,5.60824]
[1742768693789,2.33719,1991.6,1991.5,6.30724]
[1742768694385,2.33719,1991.6,1991.5,5.3029]
[1742768695080,1.3329,1991.6,1991.5,6.30724]
[1742768695390,2.33719,1991.6,1991.5,6.30724]
[1742768695688,2.33719,1991.6,1991.5,5.3029]
[1742768695886,1.00434,1991.5,1991.4,3.2078]
[1742768696097,3.78304,1991.5,1991.4,6.4618]
[1742768696283,3.78304,1991.5,1991.4,7.8086]
[1742768697788,1.00447,1991.3,1991.2,6.4598]
[1742768697989,1.00447,1991.3,1991.2,4.54]
[1742768698183,1.00447,1991.3,1991.2,8.39283685]
[1742768698690,1.00447,1991.3,1991.2,7.7478]
[1742768699588,1.00447,1991.3,1991.2,4.54]
[1742768699783,1.00447,1991.3,1991.2,5.23677661]
[1742768699984,1.00447,1991.3,1991.2,5.23677943]
[1742768700290,1.00447,1991.3,1991.2,5.88198452]
[1742768700491,1.00447,1991.3,1991.2,5.18520851]
[1742768700789,1.00447,1991.3,1991.2,4.54]
[1742768701091,1.00447,1991.3,1991.2,3.252]
[1742768702294,1.00455,1991.1,1991.0,3.254]
[1742768702591,1.0046,1991.0,1990.9,1.3554]
[1742768702894,1.0047,1990.8,1990.7,3.964]
[1742768703096,1.0047,1990.8,1990.7,5.3194]
[1742768703603,2.4092,1990.8,1990.7,5.3194]
[1742768704097,2.4092,1990.8,1990.7,2.0634]
[1742768706283,2.4092,1990.8,1990.7,5.3174]
[1742768711698,2.4092,1990.8,1990.7,3.254]
[1742768711897,1.4045,1990.8,1990.5,3.252]
[1742768712090,1.00484,1990.6,1990.5,4.6742]
[1742768712487,1.64874,1990.6,1990.5,4.6742]
[1742768713304,1.64874,1990.6,1990.5,5.67905]
[1742768716098,1.64874,1990.6,1990.5,4.6742]
[1742768716504,1.6487,1990.6,1990.5,5.67905]
[1742768716801,1.6487,1990.6,1990.5,4.6742]
[1742768718803,1.6487,1990.6,1990.5,5.67905]
[1742768719508,1.6487,1990.6,1990.5,4.6742]